bitfinex-derivatives/quotes_ETHF0:USTF0_20260117
["timestamp","ask_amount","ask_price","bid_price","bid_amount"]
[1768615717231,1.28144029,3289.5,3288.3,0.26388942]
[1768615717435,1.28144029,3289.4,3288.3,0.26388942]
[1768615717633,0.92804197,3289.3,3288.3,0.26388942]
[1768615717942,1.697,3289.7,3288.3,0.26388942]
[1768615718129,1.28185083,3289.6,3288.3,0.26388942]
[1768615718335,1.28185083,3289.5,3288.3,0.26388942]
[1768615718634,1.28185083,3289.4,3288.3,0.26388942]
[1768615718835,0.92833915,3289.3,3288.3,0.26388942]
[1768615719035,1.697,3289.7,3288.3,0.26388942]
[1768615719237,1.28194173,3289.6,3288.3,0.26388942]
[1768615719437,1.28194173,3289.5,3288.3,0.26388942]
[1768615719641,1.28194173,3289.4,3288.3,0.26388942]
[1768615719840,0.92840484,3289.3,3288.3,0.26388942]
[1768615720041,1.697,3289.7,3288.3,0.26388942]
[1768615720341,1.28188346,3289.6,3288.3,0.26388942]
[1768615720543,1.28188346,3289.5,3288.3,0.26388942]
[1768615720745,1.28188346,3289.4,3288.3,0.26388942]
[1768615720944,0.92836292,3289.3,3288.3,0.26388942]
[1768615721242,1.697,3289.7,3288.3,0.26388942]
[1768615721442,1.28182814,3289.6,3288.3,0.26388942]
[1768615721641,1.28182814,3289.5,3288.3,0.26388942]
[1768615721836,1.28182814,3289.4,3288.3,0.26388942]
[1768615722040,0.92833009,3289.3,3288.3,0.26388942]
[1768615722239,1.697,3289.7,3288.3,0.26388942]
[1768615722434,1.28178329,3289.6,3288.3,0.26388942]
[1768615722640,1.28178329,3289.5,3288.3,0.26388942]
[1768615722839,1.28178329,3289.4,3288.3,0.26388942]
[1768615723034,0.92830375,3289.3,3288.3,0.26388942]
[1768615723246,1.697,3289.7,3288.3,0.26388942]
[1768615723440,1.28177205,3289.6,3288.3,0.26388942]
[1768615723641,1.28177205,3289.5,3288.3,0.26388942]
[1768615723947,0.92828353,3289.4,3288.4,0.27963299]
[1768615724147,1.84904,3290.0,3288.4,0.27963299]
[1768615724349,1.28182965,3289.9,3288.4,0.27963299]
[1768615724539,1.84904,3290.0,3288.4,0.27963299]
[1768615724540,1.28182965,3289.8,3288.4,0.27963299]
[1768615724738,1.28182965,3289.7,3288.4,0.27963299]
[1768615724938,1.28182965,3289.6,3288.4,0.27963299]
[1768615725145,1.28182965,3289.5,3288.4,0.27963299]
[1768615725443,2.7326977,3290.6,3288.4,0.27963299]
[1768615725444,3.043,3290.5,3288.4,0.27963299]
[1768615725748,2.97904552,3290.4,3288.4,0.27963299]
[1768615725948,1.28204552,3290.3,3288.4,0.27963299]
[1768615726142,1.28204552,3290.2,3288.4,0.27963299]
[1768615726341,1.28204552,3290.1,3288.4,0.27963299]
[1768615726547,1.28204552,3290.0,3288.4,0.27963299]
[1768615726749,1.28204552,3289.9,3288.4,0.27963299]
[1768615726945,1.28204552,3289.8,3288.4,0.27963299]
[1768615727146,0.92848233,3289.7,3288.4,0.27963299]
[1768615727445,0.92874264,3289.6,3288.4,0.27963299]
[1768615727647,0.15201,3290.6,3288.4,0.27963299]
[1768615727845,2.97185616,3290.5,3288.4,0.27963299]
[1768615728046,1.27485616,3290.4,3288.4,0.27963299]
[1768615728250,1.27485616,3290.3,3288.4,0.27963299]
[1768615728446,1.27485616,3290.2,3288.4,0.27963299]
[1768615728650,1.27485616,3290.1,3288.4,0.27963299]
[1768615728845,1.27485616,3290.0,3288.4,0.27963299]
[1768615729049,1.27485616,3289.9,3288.4,0.27963299]
[1768615729249,1.27485616,3289.8,3288.4,0.27963299]
[1768615729449,0.92876897,3289.7,3288.4,0.27963299]
[1768615729652,0.92876897,3289.6,3288.4,0.27963299]
[1768615729849,1.697,3290.5,3288.4,0.27963299]
[1768615730049,1.27524456,3290.4,3288.4,0.27963299]
[1768615730252,1.27524456,3290.3,3288.4,0.27963299]
[1768615730452,1.27524456,3290.2,3288.4,0.27963299]
[1768615730647,1.27524456,3290.1,3288.4,0.27963299]
[1768615730847,1.27524456,3290.0,3288.4,0.27963299]
[1768615731049,1.27524456,3289.9,3288.4,0.27963299]
[1768615731352,1.27575804,3289.8,3288.4,0.27963299]
[1768615731557,1.27575804,3289.7,3288.4,0.27963299]
[1768615731852,0.92956531,3289.6,3288.4,0.27963299]
[1768615732052,1.84902,3290.5,3288.4,0.27963299]
[1768615732359,1.27594886,3290.4,3288.4,0.27963299]
[1768615732557,1.27594886,3290.3,3288.4,0.27963299]
[1768615732752,1.27594886,3290.2,3288.4,0.27963299]
[1768615733056,1.27594886,3290.1,3288.4,0.27963299]
[1768615733355,1.27606887,3290.0,3288.4,0.27963299]
[1768615733555,1.27606887,3289.9,3288.4,0.27963299]
[1768615733858,1.27606887,3289.8,3288.4,0.27963299]
[1768615734056,1.27606887,3289.7,3288.4,0.27963299]
[1768615734256,0.92956472,3289.6,3288.4,0.27963299]
[1768615734557,0.92956472,3289.5,3288.4,0.27963299]
[1768615734758,1.84902,3290.5,3288.4,0.27963299]
[1768615735057,1.27686502,3290.4,3288.4,0.27963299]
[1768615735254,1.27686502,3290.3,3288.4,0.27963299]
[1768615735456,1.27686502,3290.2,3288.4,0.27963299]
[1768615735766,1.27686502,3290.1,3288.4,0.27963299]
[1768615735962,1.27686502,3290.0,3288.4,0.27963299]
[1768615736156,1.27686502,3289.9,3288.4,0.27963299]
[1768615736361,1.27686502,3289.8,3288.4,0.27963299]
[1768615736563,1.27686502,3289.7,3288.4,0.27963299]
[1768615736761,0.93023296,3289.6,3288.4,0.27963299]
[1768615737063,0.93023296,3289.5,3288.4,0.27963299]
[1768615737256,1.84902,3290.5,3288.4,0.27963299]
[1768615737458,1.27671951,3290.4,3288.4,0.27963299]
[1768615737759,1.27671951,3290.3,3288.4,0.27963299]
[1768615737957,1.27671951,3290.2,3288.4,0.27963299]
[1768615738157,1.27671951,3290.1,3288.4,0.27963299]
[1768615738457,1.27671951,3290.0,3288.4,0.27963299]
[1768615738658,1.27671951,3289.9,3288.4,0.27963299]
[1768615738861,1.27671951,3289.8,3288.4,0.27963299]
[1768615739163,1.27671381,3289.7,3288.4,0.27963299]
[1768615739464,0.93012752,3289.6,3288.4,0.27963299]
[1768615739656,1.84902,3290.5,3288.4,0.27963299]
[1768615739856,1.27668333,3290.4,3288.4,0.27963299]
[1768615740065,1.27668333,3290.3,3288.4,0.27963299]
[1768615740259,1.27668332,3290.2,3288.4,0.27963299]
[1768615740454,1.27668332,3290.1,3288.4,0.27963299]
[1768615740656,1.27668332,3290.0,3288.4,0.27963299]
[1768615740861,1.27668332,3289.9,3288.4,0.27963299]
[1768615741053,1.27668332,3289.8,3288.4,0.27963299]
[1768615741351,1.84902,3290.5,3288.4,0.27963299]
[1768615741352,1.27668332,3289.7,3288.4,0.27963299]
[1768615741554,0.93010167,3289.6,3288.4,0.27963299]
[1768615741755,0.15202,3290.4,3288.4,0.27963299]
[1768615741957,1.26909511,3290.3,3288.4,0.27963299]
[1768615742165,1.26909511,3290.2,3288.4,0.27963299]
[1768615742356,1.26909511,3290.1,3288.5,0.25518261]
[1768615742648,1.26909511,3290.0,3288.5,0.25518261]
[1768615742854,1.26909511,3289.9,3288.5,0.25518261]
[1768615743056,1.26909511,3289.8,3288.5,0.25518261]
[1768615743255,1.26909511,3289.7,3288.5,0.25518261]
[1768615743460,0.93010366,3289.6,3288.5,0.25518261]
[1768615743757,0.15202,3290.4,3288.5,0.25518261]
[1768615743948,1.26914698,3290.3,3288.5,0.25518261]
[1768615744162,0.15202,3290.4,3288.5,0.25518261]
[1768615744163,1.26914698,3290.2,3288.5,0.25518261]
[1768615744352,1.26914698,3290.1,3288.5,0.25518261]
[1768615744555,1.26914698,3290.0,3288.5,0.25518261]
[1768615744751,1.26914698,3289.9,3288.5,0.25518261]
[1768615744961,1.26914698,3289.8,3288.5,0.25518261]
[1768615745164,1.26914698,3289.7,3288.5,0.25518261]
[1768615745364,0.93014202,3289.6,3288.5,0.25518261]
[1768615745555,0.15202,3290.4,3288.5,0.25518261]
[1768615745751,1.26833706,3290.3,3288.5,0.25518261]
[1768615745965,1.26833706,3290.2,3288.5,0.25518261]
[1768615746166,1.26833706,3290.1,3288.5,0.25518261]
[1768615746467,1.26833706,3290.0,3288.5,0.25518261]
[1768615746666,1.26833706,3289.9,3288.5,0.25518261]
[1768615746862,1.26833706,3289.8,3288.5,0.25518261]
[1768615747065,1.26833706,3289.7,3288.5,0.25518261]
[1768615747260,1.26833706,3289.6,3288.5,0.25518261]
[1768615747458,0.92930403,3289.5,3288.5,0.25518261]
[1768615747659,0.92930403,3289.4,3288.5,0.25518261]
[1768615747859,0.98703218,3289.9,3288.5,0.25518261]
[1768615748071,1.2684737,3289.8,3288.5,0.25518261]
[1768615748261,0.33906928,3289.7,3288.5,0.25518261]
[1768615748565,0.92940442,3289.6,3288.5,0.25518261]
[1768615748965,0.92940442,3289.5,3288.5,0.25518261]
[1768615749162,0.92940442,3289.4,3288.5,0.25518261]
[1768615749362,0.98703218,3289.9,3288.5,0.25518261]
[1768615749562,1.26872923,3289.8,3288.5,0.25518261]
[1768615749767,1.26872923,3289.7,3288.5,0.25518261]
[1768615750064,1.26872923,3289.6,3288.5,0.25518261]
[1768615750266,1.26872923,3289.5,3288.5,0.25518261]
[1768615750468,0.9295923,3289.4,3288.5,1.24221479]
[1768615750662,0.98703218,3289.9,3288.5,1.24221479]
[1768615750862,1.26888677,3289.8,3288.5,1.24221479]
[1768615751062,1.26888677,3289.7,3288.5,1.24221479]
[1768615751262,1.26888677,3289.6,3288.5,1.24221479]
[1768615751462,1.26888677,3289.5,3288.5,1.24221479]
[1768615751670,0.98703218,3289.9,3288.5,1.24221479]
[1768615751671,0.92970819,3289.4,3288.5,1.24221479]
[1768615751968,0.98703218,3289.9,3288.5,1.24221479]
[1768615752170,1.26910609,3289.8,3288.5,1.24221479]
[1768615752369,1.26910609,3289.7,3288.5,1.24221479]
[1768615752561,1.26910609,3289.6,3288.5,1.24221479]
[1768615752761,1.26910609,3289.5,3288.5,1.24221479]
[1768615752962,0.92986951,3289.4,3288.5,1.24221479]
[1768615753163,0.98703218,3289.9,3288.5,1.24221479]
[1768615753462,1.26934252,3289.8,3288.5,1.24221479]
[1768615753662,1.26934252,3289.7,3288.5,1.24221479]
[1768615753862,1.26934252,3289.6,3288.5,1.24221479]
[1768615754062,1.26934252,3289.5,3288.5,1.24221479]
[1768615754268,0.93004348,3289.4,3288.5,1.24221479]
[1768615754468,0.93004348,3289.3,3288.5,1.24221479]
[1768615754669,0.98703218,3289.9,3288.5,1.24221479]
[1768615754871,1.26976722,3289.8,3288.5,1.24221479]
[1768615755071,1.26976722,3289.7,3288.5,1.24221479]
[1768615755272,1.26976722,3289.6,3288.5,1.24221479]
[1768615755466,1.26976722,3289.5,3288.5,1.24221479]
[1768615755667,1.26976722,3289.4,3288.5,1.24221479]
[1768615755869,1.26976722,3289.3,3288.5,1.24221479]
[1768615756065,0.93035829,3289.2,3288.5,1.24221479]
[1768615756265,0.98703218,3289.9,3288.5,1.24221479]
[1768615756466,1.26994269,3289.8,3288.5,1.24221479]
[1768615756666,1.26994269,3289.7,3288.5,1.24221479]
[1768615756867,1.26994269,3289.6,3288.5,1.24221479]
[1768615757066,1.26994269,3289.5,3288.5,1.24221479]
[1768615757267,1.26994269,3289.4,3288.5,1.24221479]
[1768615757463,1.26994269,3289.3,3288.5,1.24221479]
[1768615757668,0.93047802,3289.2,3288.5,1.24221479]
[1768615757869,0.98703218,3289.9,3288.5,1.24221479]
[1768615758067,1.2699202,3289.8,3288.5,1.24221479]
[1768615758271,1.2699202,3289.7,3288.5,1.24221479]
[1768615758466,1.2699202,3289.6,3288.5,1.24221479]
[1768615758676,1.2699202,3289.5,3288.5,1.24221479]
[1768615758863,1.2699202,3289.4,3288.5,1.24221479]
[1768615759070,1.26991652,3289.3,3288.5,1.24221479]
[1768615759270,0.93046147,3289.2,3288.5,1.24221479]
[1768615759475,0.98703218,3289.9,3288.5,1.24221479]
[1768615759676,1.26989858,3289.8,3288.5,1.24221479]
[1768615759974,1.26989858,3289.7,3288.5,1.24221479]
[1768615760166,1.26989858,3289.6,3288.5,1.24221479]
[1768615760370,1.26989858,3289.5,3288.5,1.24221479]
[1768615760570,1.26989858,3289.4,3288.5,1.24221479]
[1768615760868,1.26989858,3289.3,3288.5,1.24221479]
[1768615761068,0.93044565,3289.2,3288.5,1.24221479]
[1768615761270,0.98703218,3289.7,3288.5,0.25518261]
[1768615761471,1.26989368,3289.6,3288.5,0.25518261]
[1768615761674,1.26989368,3289.5,3288.5,0.25518261]
[1768615761875,1.26989368,3289.4,3288.5,0.25518261]
[1768615762076,1.26989368,3289.3,3288.5,0.25518261]
[1768615762270,0.93044239,3289.2,3288.5,0.25518261]
[1768615762479,0.98703218,3289.7,3288.5,0.25518261]
[1768615762679,1.26988699,3289.6,3288.5,0.25518261]
[1768615762872,1.26988699,3289.5,3288.5,0.25518261]
[1768615763071,1.26988699,3289.4,3288.5,0.25518261]
[1768615763272,1.26988699,3289.3,3288.5,0.25518261]
[1768615763474,0.93043708,3289.2,3288.5,0.25518261]
[1768615763678,0.98703218,3289.7,3288.5,0.25518261]
[1768615763880,1.26989438,3289.6,3288.5,0.25518261]
[1768615764079,1.26989438,3289.5,3288.5,0.25518261]
[1768615764377,1.26989438,3289.4,3288.5,0.25518261]
[1768615764577,1.26989438,3289.3,3288.5,0.25518261]
[1768615764775,0.93044248,3289.2,3288.5,0.25518261]
[1768615764983,0.98703218,3289.7,3288.5,0.25518261]
[1768615765180,1.26990058,3289.6,3288.5,0.25518261]
[1768615765383,1.26990058,3289.5,3288.5,0.25518261]
[1768615765579,1.26990058,3289.4,3288.5,0.25518261]
[1768615765783,0.93044699,3289.3,3288.5,0.25518261]
[1768615765983,0.98703218,3289.7,3288.5,0.25518261]
[1768615766290,1.26990587,3289.6,3288.5,0.25518261]
[1768615766492,1.26990587,3289.5,3288.5,0.25518261]
[1768615766693,1.26990587,3289.4,3288.5,0.25518261]
[1768615766993,0.98703218,3289.7,3288.5,0.25518261]
[1768615766994,0.93045082,3289.3,3288.5,0.25518261]
[1768615767198,0.98703218,3289.7,3288.5,0.25518261]
[1768615767394,1.26991564,3289.6,3288.5,0.25518261]
[1768615767581,1.26991564,3289.5,3288.5,0.25518261]
[1768615767784,1.26991564,3289.4,3288.5,0.25518261]
[1768615767986,0.93045783,3289.3,3288.5,0.25518261]
[1768615768185,0.98703218,3289.8,3288.5,0.25518261]
[1768615768386,1.26992565,3289.7,3288.5,0.25518261]
[1768615768587,1.26992565,3289.6,3288.5,0.25518261]
[1768615768887,1.26992565,3289.5,3288.5,0.25518261]
[1768615769085,1.26992565,3289.4,3288.5,0.25518261]
[1768615769290,0.93046513,3289.3,3288.5,0.25518261]
[1768615769491,0.98703218,3289.8,3288.5,0.25518261]
[1768615769699,1.26997578,3289.7,3288.5,0.25518261]
[1768615769888,1.26997578,3289.6,3288.5,0.25518261]
[1768615770087,1.26997578,3289.5,3288.5,0.25518261]
[1768615770290,1.26997578,3289.4,3288.5,0.25518261]
[1768615770491,0.93050186,3289.3,3288.5,0.25518261]
[1768615770696,0.98703218,3289.7,3288.5,0.25518261]
[1768615770891,1.2699734,3289.6,3288.5,0.25518261]
[1768615771088,1.2699734,3289.5,3288.5,0.25518261]
[1768615771298,1.2699734,3289.4,3288.5,0.25518261]
[1768615771499,0.93050016,3289.3,3288.5,0.25518261]
[1768615771797,0.98703218,3289.7,3288.5,0.25518261]
[1768615771999,1.27001219,3289.6,3288.5,0.25518261]
[1768615772204,1.27001219,3289.5,3288.5,0.25518261]
[1768615772389,0.98703218,3289.7,3288.5,0.25518261]
[1768615772390,1.27001219,3289.4,3288.5,0.25518261]
[1768615772590,0.93052861,3289.3,3288.5,0.25518261]
[1768615772793,0.98703218,3289.7,3288.5,0.25518261]
[1768615772994,1.27005361,3289.6,3288.5,0.25518261]
[1768615773291,1.27005361,3289.5,3288.5,0.25518261]
[1768615773487,1.27005361,3289.4,3288.5,0.25518261]
[1768615773702,0.93055899,3289.3,3288.5,0.25518261]
[1768615773904,0.98703218,3289.7,3288.5,0.25518261]
[1768615774100,1.27010501,3289.6,3288.5,0.25518261]
[1768615774301,1.27010501,3289.5,3288.5,0.25518261]
[1768615774604,1.27010501,3289.4,3288.5,0.25518261]
[1768615774808,0.93059669,3289.3,3288.5,0.25518261]
[1768615775105,0.93059669,3289.2,3288.5,0.25518261]
[1768615775292,0.98703218,3289.7,3288.5,0.25518261]
[1768615775493,1.27026575,3289.6,3288.5,0.25518261]
[1768615775702,1.27026575,3289.5,3288.5,0.25518261]
[1768615775901,1.27026575,3289.4,3288.5,0.25518261]
[1768615776098,0.93071455,3289.3,3288.5,0.25518261]
[1768615776293,0.93071455,3289.2,3288.5,0.25518261]
[1768615776495,0.98703218,3289.7,3288.5,0.25518261]
[1768615776697,1.27128773,3289.6,3288.5,0.25518261]
[1768615776899,0.15204,3290.0,3288.1,0.15213]
[1768615776900,1.27128773,3289.5,3288.8,1.24667587]
[1768615777206,1.27128773,3289.4,3288.8,1.24667587]
[1768615777506,0.9316959,3289.3,3288.8,0.25964369]
[1768615777713,1.84904,3290.0,3288.8,0.25964369]
[1768615777906,1.2712882,3289.9,3288.8,0.25964369]
[1768615778102,1.2712882,3289.8,3288.8,0.25964369]
[1768615778304,1.2712882,3289.7,3288.8,0.25964369]
[1768615778503,1.2712882,3289.6,3288.8,0.25964369]
[1768615778703,1.2712882,3289.5,3288.8,0.25964369]
[1768615779002,1.2712882,3289.4,3288.8,0.25964369]
[1768615779308,0.93169637,3289.3,3288.8,0.25964369]
[1768615779500,1.84904,3290.0,3288.8,0.25964369]
[1768615779701,1.27128248,3289.9,3288.8,0.25964369]
[1768615779901,1.27128248,3289.8,3288.8,0.25964369]
[1768615780104,1.27128248,3289.7,3288.8,0.25964369]
[1768615780303,1.27128248,3289.6,3288.8,0.25964369]
[1768615780504,1.27128248,3289.5,3288.8,0.25964369]
[1768615780710,1.27128248,3289.4,3288.8,0.25964369]
[1768615781008,0.93169216,3289.3,3288.8,0.25964369]
[1768615781213,0.98703218,3289.9,3288.8,0.25964369]
[1768615781408,1.27141791,3289.8,3288.8,0.25964369]
[1768615781708,1.27141791,3289.7,3288.8,0.25964369]
[1768615782011,1.27141791,3289.6,3288.4,1.24667587]
[1768615782212,1.27141791,3289.5,3288.4,1.24667587]
[1768615782411,1.27141791,3289.4,3288.4,1.24667587]
[1768615782619,0.93179139,3289.3,3288.4,1.24667587]
[1768615782912,0.98703218,3289.7,3288.4,1.24667587]
[1768615783111,1.27141627,3289.6,3288.4,1.24667587]
[1768615783303,1.27141627,3289.5,3288.4,1.24667587]
[1768615783503,1.27141627,3289.4,3288.4,1.24667587]
[1768615783711,0.93179009,3289.3,3288.4,1.24667587]
[1768615783900,0.98703218,3289.7,3288.4,1.24667587]
[1768615784103,1.27141859,3289.6,3288.4,1.24667587]
[1768615784309,1.27141859,3289.5,3288.5,0.25964369]
[1768615784498,1.27141859,3289.4,3288.5,0.25964369]
[1768615784702,0.93179186,3289.3,3288.5,0.25964369]
[1768615784907,0.93178758,3289.2,3288.5,0.25964369]
[1768615785106,0.98703218,3289.7,3288.5,0.25964369]
[1768615785308,1.27141295,3289.6,3288.5,0.25964369]
[1768615785502,1.27141295,3289.5,3288.5,0.25964369]
[1768615785703,1.27141295,3289.4,3288.5,0.25964369]
[1768615785904,0.93178758,3289.3,3288.5,0.25964369]
[1768615786110,0.93178758,3289.2,3288.5,0.25964369]
[1768615786313,0.98703218,3289.7,3288.5,0.25964369]
[1768615786512,1.27144029,3289.6,3288.5,0.25964369]
[1768615786812,1.27144029,3289.5,3288.5,0.25964369]
[1768615787011,1.27144029,3289.4,3288.5,0.25964369]
[1768615787213,0.9318076,3289.3,3288.5,0.25964369]
[1768615787412,0.9318076,3289.2,3288.5,0.25964369]
[1768615787613,0.98703218,3289.7,3288.5,0.25964369]
[1768615787816,1.27144236,3289.6,3288.5,0.25964369]
[1768615788017,1.27144236,3289.5,3288.5,0.25964369]
[1768615788213,1.27144236,3289.4,3288.5,0.25964369]
[1768615788416,0.9318091,3289.3,3288.5,0.25964369]
[1768615788714,0.9318091,3289.2,3288.5,0.25964369]
[1768615788918,0.98703218,3289.7,3288.5,0.25964369]
[1768615789216,1.27144534,3289.6,3288.5,0.25964369]
[1768615789521,1.27144534,3289.5,3288.5,0.25964369]
[1768615789819,1.27144534,3289.4,3288.5,0.25964369]
[1768615790120,1.27144534,3289.3,3288.5,0.25964369]
[1768615790305,0.98703218,3289.7,3288.5,0.25964369]
[1768615790306,0.93181128,3289.2,3288.5,0.25964369]
[1768615790506,0.93181128,3289.1,3288.5,0.25964369]
[1768615790702,0.98703218,3289.7,3288.5,0.25964369]
[1768615790902,1.27132952,3289.6,3288.5,0.25964369]
[1768615791122,1.27132952,3289.5,3288.5,0.25964369]
[1768615791305,1.27132952,3289.4,3288.5,0.25964369]
[1768615791506,0.93172579,3289.3,3288.5,0.25964369]
[1768615791704,0.93172579,3289.2,3288.5,0.25964369]
[1768615791918,0.98703218,3289.7,3288.5,0.25964369]
[1768615792121,1.26365577,3289.6,3288.5,0.25964369]
[1768615792414,1.26365577,3289.5,3288.5,0.25964369]
[1768615792614,1.26365577,3289.4,3288.5,0.25964369]
[1768615792807,0.98703218,3289.7,3288.5,0.25964369]
[1768615792808,0.931678,3289.3,3288.5,0.25964369]
[1768615793010,0.931678,3289.2,3288.5,0.25964369]
[1768615793210,0.98703218,3289.7,3288.5,0.25964369]
[1768615793518,1.26356917,3289.6,3288.5,0.25964369]
[1768615793819,1.26356917,3289.5,3288.5,0.25964369]
[1768615794019,1.26356917,3289.4,3288.5,0.25964369]
[1768615794321,0.93161429,3289.3,3288.5,0.25964369]
[1768615794510,0.93161429,3289.2,3288.5,0.25964369]
[1768615794709,0.98703218,3289.7,3288.5,0.25964369]
[1768615794912,1.26353761,3289.6,3288.5,0.25964369]
[1768615795213,1.26353761,3289.5,3288.5,0.25964369]
[1768615795412,1.26353761,3289.4,3288.5,0.25964369]
[1768615795615,0.93159105,3289.3,3288.5,0.25964369]
[1768615795912,0.93159105,3289.2,3288.5,0.25964369]
[1768615796215,0.98703218,3289.7,3288.5,0.25964369]
[1768615796408,1.26348891,3289.6,3288.5,0.25964369]
[1768615796608,1.26348891,3289.5,3288.5,0.25964369]
[1768615796808,1.26348891,3289.4,3288.5,0.25964369]
[1768615797005,0.93155495,3289.3,3288.5,0.25964369]
[1768615797216,0.93155495,3289.2,3288.5,0.25964369]
[1768615797416,0.98703218,3289.7,3288.5,0.25964369]
[1768615797624,1.26346407,3289.6,3288.5,0.25964369]
[1768615797810,1.26346407,3289.5,3288.5,0.25964369]
[1768615798010,1.26346407,3289.4,3288.5,0.25964369]
[1768615798311,0.93153667,3289.3,3288.5,0.25964369]
[1768615798512,1.26343291,3289.2,3288.2,0.98703218]
[1768615798712,0.93153667,3289.1,3288.2,0.98703218]
[1768615798918,0.93153667,3289.0,3288.2,1.24443049]
[1768615799217,0.98703218,3289.5,3288.2,0.25739831]
[1768615799412,1.26314428,3289.4,3288.2,0.25739831]
[1768615799611,1.26314428,3289.3,3288.2,0.25739831]
[1768615799811,1.26314428,3289.2,3288.2,0.25739831]
[1768615800019,0.93130086,3289.1,3288.2,0.25739831]
[1768615800219,0.98703218,3289.5,3288.2,0.25739831]
[1768615800220,0.93130086,3289.0,3288.2,0.25739831]
[1768615800722,0.98703218,3289.5,3288.2,0.25739831]
[1768615800921,0.15205,3289.8,3288.2,0.25739831]
[1768615800922,0.98703218,3289.3,3288.2,0.25739831]
[1768615801118,1.26313647,3289.2,3288.2,0.25739831]
[1768615801415,1.26313647,3289.1,3288.2,0.25739831]
[1768615801619,0.93129521,3289.0,3288.2,0.25739831]
[1768615801821,0.93129521,3288.9,3288.2,0.25739831]
[1768615802018,0.98703218,3289.5,3288.2,0.25739831]
[1768615802212,1.26289086,3289.4,3288.2,0.25739831]
[1768615802417,1.26289086,3289.3,3288.2,0.25739831]
[1768615802617,1.26289086,3289.2,3288.2,0.25739831]
[1768615802815,0.93109874,3289.1,3288.2,0.25739831]
[1768615803015,0.93109874,3289.0,3288.2,0.25739831]
[1768615803216,0.98703218,3289.5,3288.2,0.25739831]
[1768615803427,1.26283367,3289.4,3288.2,0.25739831]
[1768615803622,1.26283367,3289.3,3288.2,0.25739831]
[1768615803821,1.26283367,3289.2,3288.2,0.25739831]
[1768615804122,0.93106174,3289.1,3288.2,0.25739831]
[1768615804421,0.93106174,3289.0,3288.2,0.25739831]
[1768615804614,0.98703218,3289.5,3288.2,0.25739831]
[1768615804815,1.26277832,3289.4,3288.2,0.25739831]
[1768615805114,1.26277832,3289.3,3288.2,0.25739831]
[1768615805425,1.26277832,3289.2,3288.2,0.25739831]
[1768615805620,0.93102229,3289.1,3288.2,0.25739831]
[1768615805920,0.93102229,3289.0,3288.2,0.25739831]
[1768615806118,0.98703218,3289.5,3288.2,0.25739831]
[1768615806317,1.26236705,3289.4,3288.2,0.25739831]
[1768615806513,1.26236705,3289.3,3288.2,0.25739831]
[1768615806714,1.26236705,3289.2,3288.2,0.25739831]
[1768615806914,0.93066189,3289.1,3288.2,0.25739831]
[1768615807210,0.93066189,3289.0,3288.2,0.25739831]
[1768615807411,3.19505,3289.8,3288.2,0.25739831]
[1768615807625,1.26224885,3289.7,3288.2,0.25739831]
[1768615807827,1.26224885,3289.6,3288.2,0.25739831]
[1768615808031,1.26224885,3289.5,3288.2,0.25739831]
[1768615808226,1.26224885,3289.4,3288.2,0.25739831]
[1768615808529,1.26224885,3289.3,3288.2,0.25739831]
[1768615808726,1.26224885,3289.2,3288.2,0.25739831]
[1768615808924,0.93055929,3289.1,3288.2,0.25739831]
[1768615809128,0.93055929,3289.0,3288.2,0.25739831]
[1768615809318,3.19505,3289.8,3288.2,0.25739831]
[1768615809518,1.26217349,3289.7,3288.2,0.25739831]
[1768615809719,1.26217349,3289.6,3288.2,0.25739831]
[1768615809919,1.26217349,3289.5,3288.2,0.25739831]
[1768615810118,1.26217349,3289.4,3288.2,0.25739831]
[1768615810322,1.26217349,3289.3,3288.2,0.25739831]
[1768615810618,1.26217349,3289.2,3288.2,0.25739831]
[1768615810816,0.93050487,3289.1,3288.2,0.25739831]
[1768615811016,0.93050487,3289.0,3288.2,0.25739831]
[1768615811232,3.19505,3289.8,3288.2,0.25739831]
[1768615811535,1.26217659,3289.7,3288.2,0.25739831]
[1768615811726,1.26217659,3289.6,3288.2,0.25739831]
[1768615811926,1.26217659,3289.5,3288.2,0.25739831]
[1768615812228,1.26217659,3289.4,3288.2,0.25739831]
[1768615812522,1.26217659,3289.3,3288.2,0.25739831]
[1768615812724,3.19505,3289.8,3288.2,0.25739831]
[1768615812725,1.26217659,3289.2,3288.2,0.25739831]
[1768615812927,0.93050978,3289.1,3288.2,0.25739831]
[1768615813120,3.19505,3289.8,3288.2,0.25739831]
[1768615813321,1.26221153,3289.7,3288.2,0.25739831]
[1768615813630,1.26221153,3289.6,3288.2,0.25739831]
[1768615813832,1.26221153,3289.5,3288.2,0.25739831]
[1768615814129,1.26221153,3289.4,3288.2,0.25739831]
[1768615814323,3.19505,3289.8,3288.2,0.25739831]
[1768615814324,1.26221153,3289.3,3288.2,0.25739831]
[1768615814628,1.697,3289.8,3288.4,0.98728801]
[1768615814826,0.33172503,3289.7,3288.4,0.98728801]
[1768615815014,0.33172503,3289.6,3288.4,0.98728801]
[1768615815219,1.697,3289.8,3288.4,0.98728801]
[1768615815426,0.32412769,3289.7,3288.4,0.98728801]
[1768615815730,0.32412769,3289.6,3288.4,0.98728801]
[1768615815914,0.26022071,3289.8,3288.4,0.98728801]
[1768615816119,0.32412763,3289.7,3288.4,0.98728801]
[1768615816315,0.32412763,3289.6,3288.4,0.98728801]
[1768615816527,0.26022071,3289.8,3288.4,0.98728801]
[1768615816726,0.32413467,3289.7,3288.4,0.98728801]
[1768615817014,0.32413467,3289.6,3288.4,0.98728801]
[1768615817223,0.26022071,3289.8,3288.4,0.98728801]
[1768615817418,0.31593545,3289.7,3288.4,0.98728801]
[1768615817624,0.31593545,3289.6,3288.4,0.98728801]
[1768615817833,0.26022071,3289.8,3288.4,0.98728801]
[1768615818134,0.31593502,3289.7,3288.4,0.98728801]
[1768615818329,0.31593502,3289.6,3288.4,0.98728801]
[1768615818631,0.26022071,3289.8,3288.4,0.98728801]
[1768615818825,0.31593649,3289.7,3288.4,0.98728801]
[1768615819027,0.31593649,3289.6,3288.4,0.98728801]
[1768615819331,0.26022071,3289.8,3288.4,0.98728801]
[1768615819533,0.31593798,3289.7,3288.4,0.98728801]
[1768615819732,0.31593798,3289.6,3288.4,0.98728801]
[1768615819930,0.26022071,3289.8,3288.4,0.98728801]
[1768615820231,0.31593812,3289.7,3288.4,0.98728801]
[1768615820435,0.31593812,3289.6,3288.4,0.98728801]
[1768615820626,0.26022071,3289.8,3288.4,0.98728801]
[1768615820929,0.31592793,3289.7,3288.4,0.98728801]
[1768615821227,0.31592793,3289.6,3288.4,0.98728801]
[1768615821427,0.26022071,3289.8,3288.4,0.98728801]
[1768615821733,0.3159183,3289.7,3288.4,0.98728801]
[1768615821932,0.3159183,3289.6,3288.4,0.98728801]
[1768615822133,0.26022071,3289.8,3288.4,0.98728801]
[1768615822330,0.31590899,3289.7,3288.4,0.98728801]
[1768615822536,0.26022071,3289.8,3288.4,0.98728801]
[1768615822734,0.31590876,3289.7,3288.4,0.98728801]
[1768615823034,0.31607604,3289.6,3288.4,0.98728801]
[1768615823237,0.26022071,3289.8,3288.4,0.98728801]
[1768615823535,0.31607654,3289.7,3288.4,0.98728801]
[1768615823735,0.26022071,3289.8,3288.4,0.98728801]